bitfinex-derivatives/quotes_BTCF0:USTF0_20240902
["timestamp","ask_amount","ask_price","bid_price","bid_amount"]
[1725291399311,0.00016676,58715.0,58714.0,1.157722]
[1725291399514,0.00016676,58715.0,58714.0,1.757722]
[1725291399910,0.00016676,58715.0,58714.0,0.796922]
[1725291400106,0.00016676,58715.0,58714.0,0.2008]
[1725291400514,0.00016676,58715.0,58714.0,1.396922]
[1725291400714,0.00016676,58715.0,58714.0,1.757722]
[1725291400910,0.00016676,58715.0,58714.0,1.758722]
[1725291401106,0.00416676,58715.0,58714.0,1.759722]
[1725291401721,0.0205,58730.0,58727.0,0.085143]
[1725291401918,0.0205,58730.0,58729.0,0.0008]
[1725291403027,0.105639,58730.0,58729.0,0.0008]
[1725291403509,0.105639,58730.0,58729.0,0.0018]
[1725291404321,0.106639,58730.0,58729.0,0.0018]
[1725291405310,0.108639,58730.0,58729.0,0.0008]
[1725291405616,0.108639,58730.0,58729.0,0.0018]
[1725291406316,0.108639,58730.0,58729.0,0.0008]
[1725291406919,0.105639,58730.0,58729.0,0.0008]
[1725291407253,0.105639,58730.0,58729.0,0.0018]
[1725291408810,0.105639,58730.0,58729.0,0.0008]
[1725291409015,0.105639,58730.0,58729.0,0.0018]
[1725291410318,0.106639,58730.0,58729.0,0.0028]
[1725291411025,0.106639,58730.0,58729.0,0.447741]
[1725291411026,0.0215,58730.0,58729.0,0.447741]
[1725291411225,0.106639,58730.0,58729.0,0.0018]
[1725291412531,0.106639,58730.0,58729.0,0.0008]
[1725291412912,0.191778,58730.0,58729.0,0.0008]
[1725291413118,0.551578,58730.0,58729.0,0.0008]
[1725291413318,0.551578,58730.0,58729.0,0.0018]
[1725291414030,0.467439,58730.0,58729.0,0.0008]
[1725291414418,0.467439,58730.0,58729.0,0.0018]
[1725291417524,0.106639,58730.0,58729.0,0.0018]
[1725291417829,0.105639,58730.0,58729.0,0.0018]
[1725291418032,0.467439,58730.0,58729.0,0.0018]
[1725291418524,0.467439,58730.0,58729.0,0.0008]
[1725291418728,0.106639,58730.0,58729.0,0.0008]
[1725291419324,0.106639,58730.0,58729.0,0.0018]
[1725291419526,0.105639,58730.0,58729.0,0.0018]
[1725291419734,0.106639,58730.0,58729.0,0.0018]
[1725291419931,0.106639,58730.0,58729.0,0.086941]
[1725291420146,0.106639,58730.0,58729.0,0.085941]
[1725291420319,0.105639,58730.0,58729.0,0.085941]
[1725291420723,0.105639,58730.0,58729.0,0.0008]
[1725291421126,0.466439,58730.0,58729.0,0.0008]
[1725291421423,0.105639,58730.0,58729.0,0.0008]
[1725291421618,0.106639,58730.0,58729.0,0.0008]
[1725291422432,0.0215,58730.0,58729.0,1.196741]
[1725291422729,0.3608,58749.0,58729.0,1.3592]
[1725291422934,0.08866677,58752.0,58742.0,0.61236032]
[1725291422935,0.085113,58748.0,58742.0,0.61236032]
[1725291423129,0.085113,58748.0,58745.0,0.13665821]
[1725291423326,0.18051,58751.0,58745.0,0.13665821]
[1725291423633,0.18051,58751.0,58745.0,0.13585821]
[1725291423634,0.08511,58750.0,58745.0,0.13585821]
[1725291423937,0.085113,58748.0,58745.0,0.13585821]
[1725291424127,0.085112,58749.0,58745.0,0.13585821]
[1725291424431,0.0215,58746.0,58745.0,0.13685821]
[1725291425326,0.0215,58746.0,58745.0,0.086117]
[1725291425527,0.0215,58746.0,58745.0,0.13685821]
[1725291425734,0.0215,58746.0,58745.0,0.13785821]
[1725291425928,0.0215,58746.0,58745.0,0.087117]
[1725291426325,0.106616,58746.0,58745.0,0.002]
[1725291426626,0.106616,58746.0,58745.0,0.00555817]
[1725291427237,0.106616,58746.0,58745.0,0.05626235]
[1725291427441,0.106616,58746.0,58745.0,0.00555817]
[1725291430733,0.0215,58746.0,58745.0,1.25207815]
[1725291430933,0.0215,58746.0,58745.0,1.20135517]
[1725291431337,0.085099,58758.0,58745.0,1.20121412]
[1725291431647,0.085103,58755.0,58754.0,0.33579028]
[1725291431832,0.0205,58763.0,58753.0,0.05068728]
[1725291431833,0.085104,58754.0,58753.0,0.05068728]
[1725291432141,0.3608,58761.0,58752.0,0.2]
[1725291432142,0.085106,58753.0,58752.0,0.2]
[1725291432535,0.3608,58761.0,58752.0,0.2]
[1725291432536,0.085101,58757.0,58752.0,0.2]
[1725291432737,0.3608,58761.0,58757.0,0.2]
[1725291432938,0.445894,58761.0,58760.0,0.0008]
[1725291433138,0.085099,58758.0,58757.0,0.2]
[1725291433939,0.3608,58761.0,58757.0,0.2]
[1725291433940,0.3608,58761.0,58757.0,0.201]
[1725291434149,0.0205,58763.0,58760.0,0.0008]
[1725291434340,0.085093,58762.0,58761.0,0.2]
[1725291435054,0.085093,58762.0,58760.0,0.0008]
[1725291435055,0.085094,58761.0,58760.0,0.0008]
[1725291435442,0.085094,58761.0,58760.0,0.0018]
[1725291436652,0.085094,58761.0,58760.0,0.0028]
[1725291439148,0.085094,58761.0,58760.0,0.087896]
[1725291439342,0.0205,58763.0,58762.0,0.085093]
[1725291439547,0.0205,58763.0,58762.0,0.285893]
[1725291440848,0.0205,58763.0,58762.0,0.286893]
[1725291441555,0.0205,58763.0,58762.0,0.372986]
[1725291441744,0.36168,58778.0,58766.0,0.085087]
[1725291441745,0.4058,58778.0,58766.0,0.085087]
[1725291441941,0.4058,58778.0,58777.0,0.2]
[1725291442146,0.49087,58778.0,58777.0,0.2008]
[1725291443258,0.49087,58778.0,58777.0,0.0018]
[1725291443443,0.57594,58778.0,58777.0,0.0018]
[1725291443845,0.57594,58778.0,58777.0,0.0028]
[1725291445852,0.66101,58778.0,58777.0,0.0028]
[1725291446358,1.77141,58778.0,58777.0,1e-06]
[1725291446555,1.77221,58778.0,58777.0,1e-06]
[1725291446952,2.64221,58778.0,58777.0,1e-06]
[1725291447464,2.72728,58778.0,58777.0,1e-06]
[1725291447758,2.73079878,58778.0,58777.0,1e-06]
[1725291449752,1.88011878,58778.0,58766.0,2.7e-07]
[1725291449955,1.176858,58767.0,58766.0,2.7e-07]
[1725291450457,2.287338,58767.0,58766.0,2.7e-07]
[1725291450756,2.557338,58767.0,58766.0,2.7e-07]
[1725291450950,3.157338,58767.0,58766.0,0.00100027]
[1725291451152,3.157338,58767.0,58766.0,0.00200027]
[1725291451557,0.085109,58751.0,58750.0,0.2]
[1725291451953,0.085109,58751.0,58747.0,0.3608]
[1725291451954,0.085113,58748.0,58747.0,0.3608]
[1725291452161,0.085113,58748.0,58747.0,0.00358851]
[1725291452350,0.085114,58747.0,58746.0,0.285116]
[1725291453153,0.079114,58747.0,58746.0,0.285116]
[1725291453356,0.08511,58750.0,58749.0,0.08511]
[1725291453859,0.08511,58750.0,58749.0,0.08591]
[1725291454261,0.08511,58750.0,58749.0,0.0008]
[1725291454764,0.17022,58750.0,58749.0,0.0008]
[1725291455159,0.17222,58750.0,58749.0,0.0008]
[1725291456163,0.17422,58750.0,58749.0,0.0018]
[1725291456551,0.17222,58750.0,58749.0,0.0018]
[1725291456861,0.17822,58750.0,58749.0,0.0028]
[1725291457264,0.09411,58750.0,58749.0,0.0028]
[1725291458364,0.09211,58750.0,58749.0,0.0018]
[1725291458570,0.09411,58750.0,58749.0,0.0028]
[1725291462163,0.09411,58750.0,58749.0,0.798552]
[1725291462164,0.009,58750.0,58749.0,0.798552]
[1725291462870,0.009,58750.0,58749.0,0.80217207]
[1725291463066,0.009,58750.0,58749.0,0.29153207]
[1725291465565,0.009,58750.0,58749.0,0.09153207]
[1725291467264,0.09411,58750.0,58749.0,0.09153207]
[1725291470674,0.09411,58750.0,58749.0,0.00642007]
[1725291471271,0.17922,58750.0,58749.0,0.00642007]
[1725291471775,0.09411,58750.0,58749.0,0.00642007]
[1725291473986,0.09411,58750.0,58749.0,0.09153207]
[1725291474981,0.08811,58750.0,58749.0,0.09053207]
[1725291475372,0.08611,58750.0,58749.0,0.08953207]
[1725291476078,0.08611,58750.0,58749.0,0.00442007]
[1725291476280,0.17122,58750.0,58749.0,0.00442007]
[1725291476477,0.08511,58750.0,58749.0,0.00442007]
[1725291476680,0.08711,58750.0,58749.0,0.00442007]
[1725291477184,0.09011,58750.0,58749.0,0.00442007]
[1725291477681,0.08811,58750.0,58749.0,0.00442007]
[1725291477880,0.09011,58750.0,58749.0,0.00542007]
[1725291478476,0.17322,58750.0,58749.0,0.00542007]
[1725291478679,0.09011,58750.0,58749.0,0.00542007]
[1725291479383,0.08711,58750.0,58749.0,0.00642007]
[1725291479579,0.09211,58750.0,58749.0,0.00642007]
[1725291480181,0.09211,58750.0,58749.0,0.00542007]
[1725291481286,0.08711,58750.0,58749.0,0.00542007]
[1725291481483,0.09111,58750.0,58749.0,0.00542007]
[1725291482584,0.09111,58750.0,58749.0,0.09053207]
[1725291482887,0.08711,58750.0,58749.0,0.09053207]
[1725291483084,0.09011,58750.0,58749.0,0.09053207]
[1725291483411,0.09011,58750.0,58749.0,0.08953207]
[1725291484091,0.08811,58750.0,58749.0,0.08953207]
[1725291484292,0.09011,58750.0,58749.0,0.08953207]
[1725291485286,0.08911,58750.0,58749.0,0.08953207]
[1725291486781,0.08711,58750.0,58749.0,0.08953207]
[1725291486987,0.09011,58750.0,58749.0,0.08953207]
[1725291487286,0.09011,58750.0,58749.0,0.00442007]
[1725291487678,0.08811,58750.0,58749.0,0.00442007]
[1725291488383,0.08811,58750.0,58749.0,0.08953207]
[1725291490282,0.08811,58750.0,58749.0,0.09053207]
[1725291491778,0.08811,58750.0,58749.0,0.08953207]
[1725291491981,0.08911,58750.0,58749.0,0.08953207]
[1725291493688,0.08711,58750.0,58749.0,0.00442007]
[1725291493988,0.08811,58750.0,58749.0,0.00442007]
[1725291494296,0.17222,58750.0,58749.0,0.00442007]
[1725291494493,0.17422,58750.0,58749.0,0.00442007]
[1725291494788,0.085122,58742.0,58741.0,0.00025527]
[1725291494985,0.085122,58742.0,58741.0,0.00390421]
[1725291495180,0.085522,58742.0,58741.0,0.00025527]
[1725291496888,0.170644,58742.0,58741.0,0.00025527]
[1725291497087,0.172644,58742.0,58741.0,0.00125527]
[1725291497688,0.172644,58742.0,58741.0,0.00490218]
[1725291497895,0.172644,58742.0,58741.0,0.00125527]
[1725291498189,0.177644,58742.0,58741.0,0.00125527]
[1725291498491,0.377644,58742.0,58741.0,0.00125527]
[1725291498797,0.823566,58742.0,58741.0,0.00225527]
[1725291499291,1.934286,58742.0,58741.0,0.00225527]
[1725291500886,2.804286,58742.0,58741.0,0.00225527]
[1725291501486,2.799286,58742.0,58741.0,0.00125527]
[1725291501792,2.804286,58742.0,58741.0,2.7e-07]
[1725291503597,0.255387,58737.0,58736.0,0.00025527]
[1725291503801,1.416587,58737.0,58736.0,0.00025527]
[1725291503989,1.927347,58737.0,58736.0,2.7e-07]
[1725291504590,1.33604987,58737.0,58736.0,2.7e-07]
[1725291504807,1.93604987,58737.0,58736.0,2.7e-07]
[1725291504994,1.94204987,58737.0,58736.0,0.00100027]
[1725291505600,1.934347,58737.0,58736.0,0.00100027]
[1725291505798,1.849218,58737.0,58736.0,0.00100027]
[1725291505999,1.249218,58737.0,58736.0,0.00100027]
[1725291506192,0.888418,58737.0,58736.0,0.00100027]
[1725291506388,0.294529,58737.0,58736.0,0.00200027]
[1725291506595,0.379658,58737.0,58736.0,0.00200027]
[1725291506893,0.740458,58737.0,58736.0,0.00200027]
[1725291507601,0.733458,58737.0,58736.0,0.00100027]
[1725291507800,0.739458,58737.0,58736.0,0.00200027]
[1725291507999,0.739458,58737.0,58736.0,0.0056197]
[1725291508599,0.654329,58737.0,58736.0,0.0056197]
[1725291508930,0.739458,58737.0,58736.0,0.0056197]
[1725291509797,0.739458,58737.0,58736.0,0.00200027]
[1725291509997,0.824587,58737.0,58736.0,0.00200027]
[1725291510505,0.818587,58737.0,58736.0,0.00100027]
[1725291510699,0.818587,58737.0,58736.0,0.00200027]
[1725291510700,1.935347,58737.0,58736.0,0.00200027]
[1725291511195,1.933347,58737.0,58736.0,0.00100027]
[1725291511398,1.935347,58737.0,58736.0,0.00200027]
[1725291513104,0.170282,58729.0,58728.0,0.0205]
[1725291513306,0.370682,58729.0,58728.0,0.0205]
[1725291514695,0.376682,58729.0,58728.0,0.0215]
[1725291515203,0.376682,58729.0,58728.0,0.0205]
[1725291515406,0.376682,58729.0,58728.0,0.0215]
[1725291515907,0.38324134,58729.0,58728.0,0.0225]
[1725291516610,0.38024134,58729.0,58728.0,0.0215]
[1725291516799,0.38424134,58729.0,58728.0,0.0225]
[1725291517110,0.38624134,58729.0,58728.0,0.0225]
[1725291517405,0.38624134,58729.0,58728.0,0.0215]
[1725291517406,0.38224134,58729.0,58728.0,0.0215]
[1725291517597,0.37824134,58729.0,58728.0,0.0215]
[1725291517793,0.38624134,58729.0,58728.0,0.0225]
[1725291519510,0.74704134,58729.0,58728.0,0.0225]
[1725291519903,0.74604134,58729.0,58728.0,0.0225]
[1725291520299,0.742482,58729.0,58728.0,0.0225]
[1725291520615,0.381682,58729.0,58728.0,0.0225]
[1725291525608,0.296541,58729.0,58728.0,0.0225]
[1725291525803,0.096541,58729.0,58728.0,0.107642]
[1725291526005,0.0114,58729.0,58728.0,0.107642]
[1725291526211,0.0114,58729.0,58728.0,1.218482]
[1725291527104,0.0114,58729.0,58728.0,1.303624]
[1725291527414,0.0114,58729.0,58728.0,0.703624]
[1725291527715,0.0114,58729.0,58728.0,1.303624]
[1725291528614,0.0114,58729.0,58728.0,1.503624]
[1725291528815,0.5388,58745.0,58728.0,1.503624]
[1725291528816,0.3262,58752.0,58733.0,0.2]
[1725291529014,0.2,58755.0,58749.0,0.445911]
[1725291529319,0.2,58755.0,58742.0,0.3608]
[1725291529320,0.2,58751.0,58746.0,0.085116]
[1725291530806,0.085112,58749.0,58746.0,0.085116]
[1725291531218,0.085112,58749.0,58746.0,0.089116]
[1725291531911,0.085112,58749.0,58746.0,0.086116]
[1725291533547,0.085112,58749.0,58746.0,0.085116]
[1725291534612,0.085113,58748.0,58746.0,0.08869421]
[1725291534921,0.085113,58748.0,58746.0,0.09169421]
[1725291535313,0.085113,58748.0,58746.0,0.08869421]
[1725291536323,0.085114,58747.0,58746.0,0.08869421]
[1725291537414,0.085114,58747.0,58746.0,0.00357821]
[1725291537415,0.370228,58747.0,58746.0,0.00357821]
[1725291537616,0.085119,58744.0,58743.0,0.00025527]
[1725291537916,0.170638,58744.0,58743.0,0.00025527]
[1725291539023,0.085519,58744.0,58743.0,0.00380808]
[1725291539337,0.085519,58744.0,58743.0,0.00025527]
[1725291539513,0.086519,58744.0,58743.0,0.08537527]
[1725291539829,0.086519,58744.0,58743.0,0.13267527]
[1725291540215,0.086519,58744.0,58743.0,0.13367527]
[1725291540421,0.0014,58744.0,58743.0,0.13367527]
[1725291540614,0.0014,58744.0,58743.0,0.18267527]
[1725291541321,0.0014,58744.0,58743.0,0.18367527]
[1725291542116,0.086519,58744.0,58743.0,0.08737527]
[1725291542325,0.456757,58744.0,58743.0,0.00225527]
[1725291543017,1.326757,58744.0,58743.0,0.00225527]
[1725291543414,1.325757,58744.0,58743.0,0.00225527]
[1725291543624,1.326757,58744.0,58743.0,0.00225527]
[1725291544131,1.326757,58744.0,58743.0,0.00025527]
[1725291544317,1.326757,58744.0,58743.0,0.00125527]
[1725291544720,1.326757,58744.0,58743.0,0.00025527]
[1725291545025,1.326757,58744.0,58743.0,0.00125527]
[1725291545321,1.326757,58744.0,58743.0,0.00225527]
[1725291545734,0.456757,58744.0,58743.0,0.00225527]
[1725291546227,1.326757,58744.0,58743.0,0.00225527]
[1725291546430,1.326757,58744.0,58743.0,0.00125527]
[1725291546431,0.455757,58744.0,58743.0,0.00125527]
[1725291546615,0.456757,58744.0,58743.0,0.00225527]
[1725291546818,1.326757,58744.0,58743.0,0.00225527]
[1725291548728,1.687557,58744.0,58743.0,0.00225527]
[1725291552133,2.883356,58744.0,58730.0,0.3608]
[1725291552329,0.370276,58731.0,58730.0,0.36430743]
[1725291552532,0.370676,58731.0,58730.0,0.36430743]
[1725291553030,0.170282,58729.0,58728.0,0.0205]
[1725291553219,0.170682,58729.0,58728.0,0.0205]
[1725291553421,0.170682,58729.0,58728.0,0.02400886]
[1725291554542,0.167682,58729.0,58728.0,0.02400886]
[1725291555230,0.167682,58729.0,58728.0,0.03000886]
[1725291555624,0.082541,58729.0,58728.0,0.03000886]
[1725291556230,0.084541,58729.0,58728.0,0.03000886]
[1725291556429,0.0024,58729.0,58728.0,1.22599086]
[1725291556928,0.0044,58729.0,58728.0,1.22099086]
[1725291557344,0.0024,58729.0,58728.0,1.22099086]
[1725291557630,0.0024,58729.0,58728.0,1.22299086]
[1725291557834,0.0024,58729.0,58728.0,1.22199086]
[1725291558034,0.0024,58729.0,58728.0,0.11515086]
[1725291558228,0.0024,58729.0,58728.0,0.62599086]
[1725291558730,0.0024,58729.0,58728.0,1.22799086]
[1725291558731,0.0004,58729.0,58728.0,1.22799086]
[1725291558938,0.0004,58729.0,58728.0,0.62799086]
[1725291559128,0.0004,58729.0,58728.0,1.22799086]
[1725291559536,0.0004,58729.0,58728.0,0.62799086]
[1725291560237,0.0004,58729.0,58728.0,0.62599086]
[1725291560628,0.0004,58729.0,58728.0,0.62399086]
[1725291560930,0.0004,58729.0,58728.0,0.62099086]
[1725291561322,0.0024,58729.0,58728.0,0.62099086]
[1725291563030,0.0024,58729.0,58728.0,0.47095086]
[1725291563338,0.087541,58729.0,58728.0,0.47095086]
[1725291564438,0.085541,58729.0,58728.0,0.47095086]
[1725291564737,0.087541,58729.0,58728.0,0.46995086]
[1725291565938,0.087541,58729.0,58728.0,0.10915086]
[1725291567136,0.0024,58729.0,58728.0,0.10915086]
[1725291568141,0.0004,58729.0,58728.0,0.10915086]
[1725291568445,0.0004,58729.0,58728.0,0.11015086]
[1725291568737,0.0004,58729.0,58728.0,0.11515086]
[1725291569231,0.0004,58729.0,58728.0,0.11415086]
[1725291570232,0.0004,58729.0,58728.0,0.11315086]
[1725291570838,0.0004,58729.0,58728.0,0.11415086]
[1725291571339,0.0014,58729.0,58728.0,0.19929286]
[1725291571554,0.0014,58729.0,58728.0,0.25014145]
[1725291571738,0.0014,58729.0,58728.0,0.19729286]
[1725291571948,0.0004,58729.0,58728.0,0.19729286]
[1725291572145,0.0004,58729.0,58728.0,0.25430616]
[1725291572440,0.0004,58729.0,58728.0,0.20329286]
[1725291573033,0.0004,58729.0,58728.0,0.11815086]
[1725291573240,0.0004,58729.0,58728.0,0.25431819]
[1725291573448,0.0004,58729.0,58728.0,0.16918076]
[1725291573643,0.0004,58729.0,58728.0,0.25432276]
[1725291573850,0.0004,58729.0,58728.0,0.24932268]
[1725291574044,0.0004,58729.0,58728.0,0.16418068]
[1725291574345,0.0004,58729.0,58728.0,0.11515086]
[1725291574547,0.0004,58729.0,58728.0,0.19929286]
[1725291574746,0.0004,58729.0,58728.0,0.20529286]
[1725291574943,0.0004,58729.0,58728.0,0.20029286]
[1725291575248,0.0004,58729.0,58728.0,0.57009286]
[1725291575746,0.0004,58729.0,58728.0,0.48495086]
[1725291575946,0.0004,58729.0,58728.0,0.57009286]
[1725291576750,0.0004,58729.0,58728.0,0.48495086]
[1725291576946,0.0004,58729.0,58728.0,0.57009286]
[1725291578053,0.0004,58729.0,58728.0,0.56809286]
[1725291578242,0.0004,58729.0,58728.0,0.56709286]
[1725291578753,0.0004,58729.0,58728.0,0.56809286]
[1725291579345,0.0004,58729.0,58728.0,0.61913613]
[1725291579749,0.0004,58729.0,58728.0,0.56409286]
[1725291580053,0.0004,58729.0,58728.0,0.57009286]
[1725291580568,0.0004,58729.0,58728.0,0.56409286]
[1725291580744,0.0004,58729.0,58728.0,0.61913613]
[1725291580962,0.0004,58729.0,58728.0,0.56709286]
[1725291582059,0.00025527,58734.0,58733.0,0.17027]
[1725291582351,0.22472,58743.0,58742.0,0.085122]
[1725291582352,0.1396,58743.0,58742.0,0.085122]
[1725291582544,0.0461,58743.0,58742.0,0.445922]
[1725291582739,0.0461,58743.0,58742.0,0.446322]
[1725291584654,0.0461,58743.0,58742.0,0.447322]
[1725291584655,0.0471,58743.0,58742.0,0.447322]
[1725291585654,0.0471,58743.0,58742.0,0.450322]
[1725291586552,0.0461,58743.0,58742.0,0.449322]
[1725291587150,0.0461,58743.0,58742.0,0.45282138]
[1725291587751,0.0461,58743.0,58742.0,0.45382138]
[1725291588743,0.0461,58743.0,58742.0,0.45582138]
[1725291590660,0.0461,58743.0,58742.0,0.45482138]
[1725291591153,0.0461,58743.0,58742.0,0.09202138]
[1725291591659,0.13122,58743.0,58742.0,0.09202138]
[1725291591850,0.13122,58743.0,58742.0,0.08902138]
[1725291594866,0.13122,58743.0,58742.0,0.09402138]
[1725291595266,0.13122,58743.0,58742.0,0.08902138]
[1725291596157,0.00025527,58748.0,58747.0,0.085114]
[1725291596356,0.00025527,58748.0,58747.0,0.085514]
[1725291596765,0.00025527,58748.0,58747.0,0.731428]
[1725291598060,0.00025527,58748.0,58747.0,0.735428]
[1725291598862,0.00025527,58748.0,58747.0,0.737428]
[1725291599065,0.00025527,58748.0,58747.0,0.739428]
[1725291600763,0.00025527,58748.0,58747.0,0.654314]
[1725291600958,0.00025527,58748.0,58747.0,0.454314]
[1725291601152,0.00025527,58748.0,58747.0,0.093514]
[1725291601861,0.08536827,58748.0,58747.0,0.0084]
[1725291602756,0.08536827,58748.0,58747.0,0.0024]
[1725291603058,0.08536827,58748.0,58747.0,0.0064]
[1725291604069,0.00025527,58748.0,58747.0,0.091514]
[1725291604655,0.13196827,58748.0,58747.0,0.091514]
[1725291604957,0.13196827,58748.0,58747.0,0.085514]
[1725291605354,0.00025527,58748.0,58747.0,0.085514]
[1725291605756,0.00025527,58748.0,58747.0,0.086514]
[1725291607571,0.00025527,58748.0,58747.0,0.087514]
[1725291608068,0.00025527,58748.0,58747.0,0.178628]
[1725291608266,1e-08,58748.0,58747.0,1.374422]
[1725291608468,0.0466,58756.0,58755.0,0.085103]
[1725291608666,0.0466,58756.0,58755.0,0.807103]
[1725291610066,0.0483,58758.0,58757.0,0.0851]
[1725291610272,0.00025452,58761.0,58760.0,0.085096]
[1725291610472,0.00025452,58761.0,58760.0,0.445896]
[1725291610676,0.00025452,58761.0,58760.0,0.446296]
[1725291611463,0.00025452,58761.0,58760.0,0.447296]
[1725291612573,0.00025452,58761.0,58760.0,0.45154582]
[1725291613168,0.00025452,58761.0,58760.0,0.45254582]
[1725291615261,0.00096001,58774.0,58761.0,0.51052]
[1725291615567,0.0205,58779.0,58778.0,0.08507]
[1725291615767,0.0205,58779.0,58778.0,0.44587]
[1725291615958,0.0205,58779.0,58778.0,0.3608]
[1725291616167,0.0205,58779.0,58773.0,0.36268]
[1725291616168,1.415968,58779.0,58773.0,0.36105527]
[1725291616363,0.285075,58774.0,58773.0,0.36105527]
[1725291616564,0.08507,58778.0,58773.0,0.36105527]
[1725291616759,0.08507,58778.0,58777.0,0.0008]
[1725291616960,0.08507,58778.0,58773.0,0.36105527]
[1725291617972,0.08507,58778.0,58777.0,0.001]
[1725291618471,0.08507,58778.0,58773.0,0.36538726]
[1725291618670,0.08507,58778.0,58773.0,0.36638726]
[1725291618871,0.08507,58778.0,58773.0,0.36738726]
[1725291619474,0.0205,58779.0,58773.0,0.36738726]
[1725291619781,0.105568,58779.0,58778.0,0.0008]
[1725291622476,0.190636,58779.0,58778.0,0.0008]
[1725291622675,0.190636,58779.0,58773.0,0.36638726]
[1725291622676,0.255225,58774.0,58773.0,0.00125527]
[1725291623006,0.255225,58774.0,58758.0,0.3608]
[1725291623007,0.085097,58759.0,58758.0,0.3608]
[1725291623366,0.085097,58759.0,58758.0,0.36501573]
[1725291624772,0.085097,58759.0,58758.0,0.37401573]
[1725291625482,0.085097,58759.0,58758.0,0.36501573]
[1725291625882,0.086097,58759.0,58758.0,0.36501573]
[1725291626072,0.135197,58759.0,58758.0,0.36501573]
[1725291626585,0.136197,58759.0,58758.0,0.36501573]
[1725291627678,0.421294,58759.0,58758.0,0.36501573]
[1725291627878,0.421294,58759.0,58753.0,0.00025527]
[1725291627879,0.085104,58754.0,58753.0,0.00025527]
[1725291628080,0.085104,58754.0,58753.0,0.00447697]
[1725291628277,0.085104,58754.0,58753.0,0.00025527]
[1725291628483,0.255312,58754.0,58753.0,0.00025527]
[1725291628777,1.365912,58754.0,58753.0,0.00025527]
[1725291628983,1.556504,58754.0,58734.0,0.3608]
[1725291629178,0.085132,58735.0,58734.0,0.3608]
[1725291629570,0.085126,58739.0,58734.0,0.3608]
[1725291629772,0.085126,58739.0,58738.0,0.2]
[1725291630072,0.085126,58739.0,58738.0,0.0008]
[1725291630274,0.085526,58739.0,58738.0,0.0008]
[1725291630884,0.084526,58739.0,58738.0,0.0008]
[1725291631483,0.169652,58739.0,58738.0,0.0008]
[1725291631703,0.369652,58739.0,58738.0,0.0008]
[1725291632084,0.369652,58739.0,58738.0,0.0098]
[1725291632588,0.370652,58739.0,58738.0,0.0028]
[1725291632793,0.455778,58739.0,58738.0,0.0028]
[1725291633090,1.566498,58739.0,58738.0,1e-06]
[1725291633487,0.255423,58729.0,58719.0,0.3608]
[1725291633692,0.085154,58720.0,58719.0,0.3608]
[1725291633881,0.085554,58720.0,58719.0,0.3608]
[1725291634081,0.170308,58720.0,58719.0,0.3608]
[1725291634487,0.085542,58729.0,58719.0,1.07592291]
[1725291634680,0.085541,58729.0,58728.0,0.2]
[1725291635085,0.085541,58729.0,58727.0,0.3608]
[1725291635086,0.085142,58728.0,58727.0,0.3608]
[1725291635384,0.085542,58728.0,58724.0,0.5608]
[1725291635583,0.0004,58725.0,58724.0,0.5608]
[1725291637892,0.0034,58725.0,58724.0,0.5608]
[1725291638783,0.0014,58725.0,58724.0,0.5608]
[1725291638989,0.0014,58725.0,58724.0,0.5628]
[1725291640701,0.0014,58725.0,58724.0,0.647948]
[1725291640883,0.0014,58725.0,58724.0,0.645948]
[1725291641082,0.0014,58725.0,58724.0,0.646948]
[1725291642097,0.0004,58725.0,58724.0,0.645948]
[1725291642395,0.0014,58725.0,58724.0,0.653948]
[1725291642592,0.0004,58729.0,58728.0,0.085142]
[1725291642922,0.0004,58729.0,58728.0,0.646342]
[1725291643090,0.0004,58729.0,58728.0,1.757182]
[1725291643486,0.0004,58729.0,58728.0,1.842324]
[1725291643692,0.00025527,58734.0,58733.0,0.085135]
[1725291643892,0.00025527,58734.0,58733.0,0.646335]
[1725291645192,0.00125527,58734.0,58733.0,0.646335]
[1725291645695,0.00125527,58734.0,58733.0,0.654335]
[1725291646220,0.00025527,58734.0,58733.0,0.3612]
[1725291646502,0.00025527,58734.0,58733.0,0.3782]
[1725291646998,0.00025527,58734.0,58733.0,0.463335]
[1725291648092,0.00025527,58734.0,58733.0,0.46766653]
[1725291648397,0.00025527,58734.0,58733.0,0.46066653]
[1725291648690,0.08538827,58734.0,58733.0,0.37253153]
[1725291649098,0.08638827,58734.0,58733.0,0.36553153]
[1725291650799,0.17152127,58734.0,58733.0,0.36553153]
[1725291651298,0.17152127,58734.0,58728.0,0.00025527]
[1725291651299,0.085141,58729.0,58728.0,0.00025527]
[1725291651494,0.085141,58729.0,58728.0,0.00443817]
[1725291651495,0.285541,58729.0,58728.0,0.00443817]
[1725291651699,0.285541,58729.0,58728.0,0.00025527]
[1725291651897,0.370682,58729.0,58728.0,0.00025527]
[1725291652697,0.371682,58729.0,58728.0,0.00125527]
[1725291654494,0.371682,58729.0,58728.0,0.00225527]
[1725291654696,0.370682,58729.0,58728.0,0.00125527]
[1725291654994,0.371682,58729.0,58728.0,0.00225527]
[1725291655200,0.371682,58729.0,58728.0,0.00645529]
[1725291656407,0.371682,58729.0,58728.0,0.00545529]
[1725291656408,0.370682,58729.0,58728.0,0.00545529]
[1725291656608,0.371682,58729.0,58728.0,0.00645529]
[1725291660905,0.371682,58729.0,58728.0,0.00545529]
[1725291661097,0.370682,58729.0,58728.0,0.00545529]
[1725291661412,0.371682,58729.0,58728.0,0.00645529]
[1725291662494,0.371682,58729.0,58728.0,0.00545529]
[1725291662700,0.371682,58729.0,58728.0,0.00645529]
[1725291663702,0.371682,58729.0,58728.0,0.00225527]
[1725291663703,1.57190965,58729.0,58728.0,0.00225527]
[1725291663913,1.57190965,58729.0,58711.0,0.07154327]
[1725291663914,0.085165,58712.0,58711.0,0.07154327]
[1725291664111,0.285565,58712.0,58711.0,0.0205]
[1725291664404,0.085565,58712.0,58711.0,0.02410905]
[1725291665112,0.085565,58712.0,58711.0,0.02910905]
[1725291665414,0.085565,58712.0,58711.0,0.03110905]